[Event "ROU-chT 1st League 2019"]
[Site "Mamaia"]
[Date "2019.09.25"]
[Round "5.4"]
[White "Manolache, Marius"]
[Black "Mateuta, Gabriel"]
[Result "1/2-1/2"]
[ECO "A40"]
[WhiteElo "2548"]
[BlackElo "2514"]
[Annotator "ChessBase"]
[PlyCount "49"]
[EventDate "2019.09.21"]
[EventType "team-tourn"]
[EventCountry "ROU"]
[SourceTitle "playchess.com"]
[Source "ChessBase"]
[SourceQuality "1"]
[TimeControl "40/5400+30:1800+30"]

1. d4 {[%emt 0:00:00]} e6 {[%emt 0:00:00]} 2. Nf3 {[%emt 0:00:00]} c5 {[%emt 0:00:04]} 3. e3 {[%emt 0:00:10]} Nf6 {[%emt 0:00:27]} 4. Be2 {[%emt 0:00:19]} b6 {[%emt 0:09:23]} 5. c4 {[%emt 0:05:04]} Bb7 {[%emt 0:02:28]} 6. O-O {[%emt 0:00:33]} Be7 {[%emt 0:00:19]} 7. Nc3 {[%emt 0:00:20]} cxd4 {[%emt 0:05:04]} 8. Nxd4 {[%emt 0:07:52]} O-O {[%emt 0:05:12]} 9. Bf3 {[%emt 0:06:44]} Nc6 {[%emt 0:03:54]} 10. b3 {[%emt 0:01:41]} Qb8 {[%emt 0:04:49]} 11. Nxc6 {[%emt 0:00:55]} Bxc6 {[%emt 0:00:55]} 12. Bb2 {[%emt 0:02:43]} Rd8 {[%emt 0:05:06]} 13. Qe2 {[%emt 0:02:20]} Bd6 {[%emt 0:09:11]} 14. h3 {[%emt 0:13:24]} Bh2+ {[%emt 0:03:55]} 15. Kh1 {[%emt 0:00:04]} Be5 {[%emt 0:00:05]} 16. Rad1 {[%emt 0:14:10]} Bxf3 {[%emt 0:06:58]} 17. Qxf3 {[%emt 0:00:37]} a6 {[%emt 0:00:40]} 18. Rd2 {[%emt 0:15:21]} Qc7 {[%emt 0:09:55]} 19. Rc1 {[%emt 0:02:21]} Rac8 {[%emt 0:00:56]} 20. Rdc2 {[%emt 0:05:39]} Qb8 {[%emt 0:02:24]} 21. Qe2 {[%emt 0:01:01]} h6 {[%emt 0:02:55]} 22. Kg1 {[%emt 0:00:15]} Qb7 {[%emt 0:02:53]} 23. Rd1 {[%emt 0:01:28]} Qb8 {[%emt 0:02:51]} 24. Rdc1 {[%emt 0:00:48]} Qb7 {[%emt 0:00:07]} 25. Rd1 {[%emt 0:00:05]} 1/2-1/2

[Event "ROU-chT 1st League 2019"]
[Site "Mamaia"]
[Date "2019.09.25"]
[Round "5.5"]
[White "Filip, Lucian-Ioan"]
[Black "Anton, Teodor"]
[Result "1/2-1/2"]
[ECO "E06"]
[WhiteElo "2419"]
[BlackElo "2445"]
[Annotator "NA"]
[PlyCount "29"]
[EventDate "2019.09.21"]
[EventType "team-tourn"]
[EventCountry "ROU"]
[SourceTitle "playchess.com"]
[Source "ChessBase"]
[SourceQuality "1"]
[TimeControl "40/5400+30:1800+30"]

1. d4 {[%emt 0:00:00]} Nf6 {[%emt 0:00:40]} 2. c4 {[%emt 0:00:00]} e6 {[%emt 0:00:59]} 3. Nf3 {[%emt 0:00:00]} d5 {[%emt 0:01:07]} 4. g3 {[%emt 0:00:00]} Be7 {[%emt 0:00:17]} 5. Bg2 {[%emt 0:00:00]} O-O {[%emt 0:00:07]} 6. O-O {[%emt 0:00:03]} dxc4 {[%emt 0:00:20]} 7. Qc2 {[%emt 0:01:26]} a6 {[%emt 0:00:13]} 8. a4 {[%emt 0:00:11]} Bd7 {[%emt 0:02:32]} 9. Rd1 {[%emt 0:00:25]} Bc6 {[%emt 0:00:45]} 10. Nc3 {[%emt 0:00:13]} Bxf3 {[%emt 0:01:22]} 11. Bxf3 {[%emt 0:01:24]} Nc6 {[%emt 0:00:07]} 12. Bxc6 {[%emt 0:01:42]} bxc6 {[%emt 0:00:05]} 13. Bg5 {[%emt 0:00:21]} Nd5 {[%emt 0:06:21]} 14. Bxe7 {[%emt 0:00:19]} Qxe7 {[%emt 0:00:13]} 15. Ne4 {[%emt 0:06:03]} 1/2-1/2

[Event "ROU-chT 1st League 2019"]
[Site "Mamaia"]
[Date "2019.09.25"]
[Round "5.6"]
[White "Banzea, Alexandru-Bogdan"]
[Black "Ognean, Mihnea-Ionut"]
[Result "0-1"]
[ECO "B31"]
[WhiteElo "2401"]
[BlackElo "2285"]
[Annotator "NA"]
[PlyCount "104"]
[EventDate "2019.09.21"]
[EventType "team-tourn"]
[EventCountry "ROU"]
[SourceTitle "playchess.com"]
[Source "ChessBase"]
[SourceQuality "1"]
[TimeControl "40/5400+30:1800+30"]

1. e4 {[%emt 0:00:00]} c5 {[%emt 0:00:00]} 2. Nf3 {[%emt 0:00:00]} Nc6 {[%emt 0:00:00]} 3. Bb5 {[%emt 0:00:00]} g6 {[%emt 0:00:09]} 4. O-O {[%emt 0:00:25]} Bg7 {[%emt 0:00:22]} 5. Nc3 {[%emt 0:00:38]} e5 {[%emt 0:00:20]} 6. a3 {[%emt 0:00:18]} Nge7 {[%emt 0:00:15]} 7. b4 {[%emt 0:00:13]} d6 {[%emt 0:00:05]} 8. bxc5 {[%emt 0:00:26]} dxc5 {[%emt 0:00:06]} 9. d3 {[%emt 0:00:21]} O-O {[%emt 0:00:40]} 10. Bc4 {[%emt 0:00:24]} Nd4 {[%emt 0:01:29]} 11. Nxd4 {[%emt 0:05:07]} cxd4 {[%emt 0:00:02]} 12. Ne2 {[%emt 0:03:06]} Qc7 {[%emt 0:14:03]} 13. Bd2 {[%emt 0:02:03]} Be6 {[%emt 0:04:16]} 14. Bxe6 {[%emt 0:00:07]} fxe6 {[%emt 0:00:02]} 15. Qb1 {[%emt 0:01:49]} Rfc8 {[%emt 0:05:07]} 16. Qb3 {[%emt 0:09:12]} Qd7 {[%emt 0:04:54]} 17. a4 {[%emt 0:03:26]} Rc6 {[%emt 0:04:30]} 18. a5 {[%emt 0:01:41]} Rac8 {[%emt 0:05:29]} 19. Ra2 {[%emt 0:00:19]} Bf6 {[%emt 0:14:05]} 20. g3 {[%emt 0:00:58]} Kg7 {[%emt 0:04:27]} 21. Kg2 {[%emt 0:06:46]} g5 {[%emt 0:02:45]} 22. h3 {[%emt 0:09:00]} Ng6 {[%emt 0:00:42]} 23. Ng1 {[%emt 0:06:46]} R8c7 {[%emt 0:03:37]} 24. Nf3 {[%emt 0:00:32]} h6 {[%emt 0:00:12]} 25. Rc1 {[%emt 0:03:51]} Qc8 {[%emt 0:00:57]} 26. Qb5 {[%emt 0:02:41]} Rc5 {[%emt 0:02:07]} 27. Qb3 {[%emt 0:00:40]} Be7 {[%emt 0:01:51]} 28. Qa4 {[%emt 0:03:43]} R5c6 {[%emt 0:06:04]} 29. Rb2 {[%emt 0:00:36]} Bd6 {[%emt 0:03:48]} 30. Rcb1 {[%emt 0:00:30]} Ra6 {[%emt 0:03:21]} 31. Rb5 {[%emt 0:02:42]} b6 {[%emt 0:09:34]} 32. Nxd4 {[%emt 0:02:35]} bxa5 {[%emt 0:00:03]} 33. Nf3 {[%emt 0:08:07]} Rxc2 {[%emt 0:02:29]} 34. Bxa5 {[%emt 0:02:55]} Rc7 {[%emt 0:01:17]} 35. Bxc7 {[%emt 0:12:31]} Rxa4 {[%emt 0:00:03]} 36. Bxd6 {[%emt 0:00:06]} Qd8 {[%emt 0:01:48]} 37. Rb7+ {[%emt 0:05:16]} Kf6 {[%emt 0:00:07]} 38. Bc7 {[%emt 0:01:45]} Qxd3 {[%emt 0:02:53]} 39. Rb8 {[%emt 0:01:28]} Qxe4 {[%emt 0:04:38]} 40. Bd8+ {[%emt 0:00:00]} Kf5 41. R8b7 {[%emt 0:17:19]} Nh8 {[%emt 0:06:33]} 42. R1b5 {[%emt 0:02:45]} Kg6 {[%emt 0:03:42]} 43. Re7 {[%emt 0:02:41]} Ra3 {[%emt 0:02:33]} 44. Rxe6+ {[%emt 0:02:25]} Kg7 {[%emt 0:00:09]} 45. Rf6 {[%emt 0:06:00]} Nf7 {[%emt 0:04:19]} 46. Be7 {[%emt 0:00:18]} Rd3 {[%emt 0:00:53]} 47. Rb8 {[%emt 0:02:54]} g4 {[%emt 0:00:40]} 48. hxg4 {[%emt 0:00:38]} Ng5 {[%emt 0:00:06]} 49. Rbf8 {[%emt 0:01:35]} Rxf3 {[%emt 0:00:04]} 50. Rxf3 {[%emt 0:00:26]} Nxf3 {[%emt 0:00:04]} 51. Rxf3 {[%emt 0:00:03]} Kg6 {[%emt 0:00:11]} 52. Bd8 {[%emt 0:03:02]} a5 {[%emt 0:00:15]} 0-1

[Event "ROU-chT 1st League 2019"]
[Site "Mamaia"]
[Date "2019.09.25"]
[Round "5.7"]
[White "Oltean, Dorel"]
[Black "Musat, Adrian"]
[Result "1-0"]
[ECO "B95"]
[WhiteElo "2333"]
[BlackElo "2378"]
[Annotator "NA"]
[PlyCount "79"]
[EventDate "2019.09.21"]
[EventType "team-tourn"]
[EventCountry "ROU"]
[SourceTitle "playchess.com"]
[Source "ChessBase"]
[SourceQuality "1"]
[TimeControl "40/5400+30:1800+30"]

1. e4 {[%emt 0:00:00]} c5 {[%emt 0:00:00]} 2. Nf3 {[%emt 0:00:07]} d6 {[%emt 0:00:00]} 3. d4 {[%emt 0:00:08]} cxd4 {[%emt 0:00:00]} 4. Nxd4 {[%emt 0:00:08]} Nf6 {[%emt 0:00:00]} 5. Nc3 {[%emt 0:00:04]} a6 {[%emt 0:00:00]} 6. Bg5 {[%emt 0:02:38]} e6 {[%emt 0:00:09]} 7. Qd2 {[%emt 0:01:09]} b5 {[%emt 0:06:44]} 8. f3 {[%emt 0:14:07]} Be7 {[%emt 0:09:43]} 9. O-O-O {[%emt 0:19:31]} b4 {[%emt 0:09:59]} 10. Nce2 {[%emt 0:03:09]} Qb6 {[%emt 0:08:58]} 11. Be3 {[%emt 0:02:58]} Qb7 {[%emt 0:03:18]} 12. g4 {[%emt 0:03:45]} e5 {[%emt 0:07:13]} 13. Nf5 {[%emt 0:02:52]} Bxf5 {[%emt 0:00:14]} 14. gxf5 {[%emt 0:00:09]} Nbd7 {[%emt 0:02:26]} 15. Rg1 {[%emt 0:05:21]} g6 {[%emt 0:01:29]} 16. Ng3 {[%emt 0:02:13]} Rc8 {[%emt 0:02:37]} 17. h4 {[%emt 0:01:23]} a5 {[%emt 0:02:45]} 18. Kb1 {[%emt 0:06:43]} a4 {[%emt 0:15:27]} 19. Bd3 {[%emt 0:16:24]} Nc5 {[%emt 0:02:11]} 20. Bxc5 {[%emt 0:06:13]} Rxc5 {[%emt 0:00:20]} 21. h5 {[%emt 0:00:16]} gxh5 {[%emt 0:00:35]} 22. Qh6 {[%emt 0:01:16]} h4 {[%emt 0:00:54]} 23. Nf1 {[%emt 0:04:17]} b3 {[%emt 0:11:54]} 24. cxb3 {[%emt 0:01:22]} axb3 {[%emt 0:00:15]} 25. a3 {[%emt 0:01:24]} Kd7 {[%emt 0:00:16]} 26. Qxh4 {[%emt 0:02:03]} Rhc8 {[%emt 0:02:58]} 27. Qe1 {[%emt 0:00:49]} Bd8 {[%emt 0:06:53]} 28. Ne3 {[%emt 0:00:21]} Ba5 {[%emt 0:00:37]} 29. Qe2 {[%emt 0:00:15]} Qc7 {[%emt 0:00:37]} 30. Ba6 {[%emt 0:01:05]} Rf8 {[%emt 0:02:01]} 31. Nc4 {[%emt 0:01:04]} Ne8 {[%emt 0:00:48]} 32. f4 {[%emt 0:01:12]} Ke7 {[%emt 0:01:20]} 33. fxe5 {[%emt 0:00:23]} dxe5 {[%emt 0:00:10]} 34. f6+ {[%emt 0:00:20]} Nxf6 {[%emt 0:00:06]} 35. Ne3 {[%emt 0:00:06]} Rd8 {[%emt 0:01:49]} 36. Nf5+ {[%emt 0:00:24]} Ke8 {[%emt 0:00:14]} 37. Bb5+ {[%emt 0:00:15]} Rxb5 {[%emt 0:00:32]} 38. Qxb5+ {[%emt 0:00:12]} Kf8 {[%emt 0:00:10]} 39. Rxd8+ {[%emt 0:00:12]} Qxd8 {[%emt 0:00:00]} 40. Qc5+ {[%emt 0:00:00]} 1-0

[Event "ROU-chT 1st League 2019"]
[Site "Mamaia"]
[Date "2019.09.25"]
[Round "5.8"]
[White "Doncea, Vladimir"]
[Black "Florescu, Codrut-Constantin"]
[Result "1-0"]
[ECO "A05"]
[WhiteElo "2341"]
[BlackElo "2286"]
[Annotator "NA"]
[PlyCount "103"]
[EventDate "2019.09.21"]
[EventType "team-tourn"]
[EventCountry "ROU"]
[SourceTitle "playchess.com"]
[Source "ChessBase"]
[SourceQuality "1"]
[TimeControl "40/5400+30:1800+30"]

1. Nf3 {[%emt 0:00:00]} Nf6 {[%emt 0:00:00]} 2. c4 {[%emt 0:00:39]} e6 {[%emt 0:00:00]} 3. g3 {[%emt 0:00:23]} d5 {[%emt 0:00:17]} 4. Bg2 {[%emt 0:00:07]} Be7 {[%emt 0:00:04]} 5. d4 {[%emt 0:03:38]} O-O {[%emt 0:00:05]} 6. O-O {[%emt 0:00:04]} c6 {[%emt 0:00:03]} 7. Qc2 {[%emt 0:01:20]} Nbd7 {[%emt 0:00:05]} 8. Rd1 {[%emt 0:00:55]} b6 {[%emt 0:01:46]} 9. b3 {[%emt 0:00:16]} Bb7 {[%emt 0:00:20]} 10. Nc3 {[%emt 0:00:27]} Rc8 {[%emt 0:00:06]} 11. e4 {[%emt 0:00:48]} c5 {[%emt 0:01:16]} 12. exd5 {[%emt 0:00:15]} exd5 {[%emt 0:00:07]} 13. Bb2 {[%emt 0:00:06]} Re8 {[%emt 0:15:45]} 14. Nh4 {[%emt 0:02:40]} Bf8 {[%emt 0:28:36]} 15. dxc5 {[%emt 0:27:57]} Rxc5 {[%emt 0:01:55]} 16. Nxd5 {[%emt 0:04:21]} Nxd5 {[%emt 0:02:50]} 17. Bxd5 {[%emt 0:03:52]} Bxd5 {[%emt 0:04:21]} 18. Rxd5 {[%emt 0:00:08]} Rxd5 {[%emt 0:00:03]} 19. cxd5 {[%emt 0:00:08]} Ne5 {[%emt 0:04:10]} 20. Rd1 {[%emt 0:02:13]} Bc5 {[%emt 0:00:41]} 21. Qf5 {[%emt 0:07:44]} g6 {[%emt 0:02:58]} 22. Qf4 {[%emt 0:01:36]} Bd6 {[%emt 0:00:12]} 23. Nf3 {[%emt 0:07:16]} Nd3 {[%emt 0:03:47]} 24. Qd4 {[%emt 0:02:38]} Nxb2 {[%emt 0:00:05]} 25. Qxb2 {[%emt 0:00:05]} Bc5 {[%emt 0:00:07]} 26. b4 {[%emt 0:01:37]} Bf8 {[%emt 0:00:57]} 27. Qd4 {[%emt 0:02:39]} Qd6 {[%emt 0:00:21]} 28. b5 {[%emt 0:10:56]} Rd8 {[%emt 0:10:54]} 29. a4 {[%emt 0:00:25]} Bg7 {[%emt 0:04:45]} 30. Qc4 {[%emt 0:03:15]} Bf6 {[%emt 0:00:05]} 31. Kg2 {[%emt 0:00:34]} Kg7 {[%emt 0:00:02]} 32. Rd3 {[%emt 0:00:24]} Qc5 {[%emt 0:01:04]} 33. Nd2 {[%emt 0:07:41]} Qxc4 {[%emt 0:02:31]} 34. Nxc4 {[%emt 0:00:08]} Rc8 {[%emt 0:00:08]} 35. Ne3 {[%emt 0:02:39]} Be5 {[%emt 0:00:05]} 36. d6 {[%emt 0:01:08]} f5 {[%emt 0:01:49]} 37. f4 {[%emt 0:01:05]} Bf6 {[%emt 0:01:47]} 38. Nd5 {[%emt 0:00:15]} Kf7 {[%emt 0:00:43]} 39. Nb4 {[%emt 0:01:24]} Ke6 {[%emt 0:06:12]} 40. Nc6 {[%emt 0:00:00]} Kd7 {[%emt 0:00:00]} 41. Kf3 {[%emt 0:08:19]} Re8 {[%emt 0:14:01]} 42. Rd5 {[%emt 0:03:11]} Re6 {[%emt 0:04:58]} 43. Ne5+ {[%emt 0:01:12]} Bxe5 {[%emt 0:00:06]} 44. fxe5 {[%emt 0:00:06]} g5 {[%emt 0:00:03]} 45. g4 {[%emt 0:00:30]} f4 {[%emt 0:00:24]} 46. Ke4 {[%emt 0:00:35]} Re8 {[%emt 0:00:06]} 47. Rd3 {[%emt 0:01:51]} h5 {[%emt 0:05:01]} 48. Kd5 {[%emt 0:02:10]} Rc8 {[%emt 0:02:15]} 49. e6+ {[%emt 0:00:19]} Kd8 {[%emt 0:00:02]} 50. d7 {[%emt 0:01:20]} Rc2 {[%emt 0:00:09]} 51. Kd6 {[%emt 0:00:30]} Re2 {[%emt 0:00:07]} 52. gxh5 {[%emt 0:00:15]} 1-0

[Event "ROU-chT 1st League 2019"]
[Site "Mamaia"]
[Date "2019.09.25"]
[Round "5.9"]
[White "Oltean, Liviu-Ioan"]
[Black "Ciorgovean, Iustin"]
[Result "1/2-1/2"]
[ECO "C07"]
[WhiteElo "2313"]
[BlackElo "2331"]
[Annotator "NA"]
[PlyCount "20"]
[EventDate "2019.09.21"]
[EventType "team-tourn"]
[EventCountry "ROU"]
[SourceTitle "playchess.com"]
[Source "ChessBase"]
[SourceQuality "1"]
[TimeControl "40/5400+30:1800+30"]

1. e4 {[%emt 0:00:00]} e6 {[%emt 0:00:00]} 2. d4 {[%emt 0:01:31]} d5 {[%emt 0:00:00]} 3. Nd2 {[%emt 0:01:04]} c5 {[%emt 0:01:39]} 4. exd5 {[%emt 0:00:14]} Qxd5 {[%emt 0:00:05]} 5. Ngf3 {[%emt 0:01:31]} cxd4 {[%emt 0:00:01]} 6. Bc4 {[%emt 0:00:15]} Qd6 {[%emt 0:00:18]} 7. O-O {[%emt 0:01:12]} Nf6 {[%emt 0:00:14]} 8. Nb3 {[%emt 0:01:39]} Nc6 {[%emt 0:00:19]} 9. Nbxd4 {[%emt 0:00:32]} Nxd4 {[%emt 0:00:08]} 10. Qxd4 {[%emt 0:00:14]} Qxd4 {[%emt 0:00:08]} 1/2-1/2

[Event "ROU-chT 1st League 2019"]
[Site "Mamaia"]
[Date "2019.09.25"]
[Round "5.10"]
[White "Barzanu, Iulian"]
[Black "Talu, Mircea"]
[Result "0-1"]
[ECO "A00"]
[WhiteElo "2187"]
[BlackElo "2288"]
[Annotator "NA"]
[PlyCount "76"]
[EventDate "2019.09.21"]
[EventType "team-tourn"]
[EventCountry "ROU"]
[SourceTitle "playchess.com"]
[Source "ChessBase"]
[SourceQuality "1"]
[TimeControl "40/5400+30:1800+30"]

1. g3 {[%emt 0:02:37]} Nf6 {[%emt 0:00:16]} 2. Bg2 {[%emt 0:00:07]} e5 {[%emt 0:05:40]} 3. c4 {[%emt 0:01:31]} Nc6 {[%emt 0:01:49]} 4. Nc3 {[%emt 0:01:39]} Bb4 {[%emt 0:00:37]} 5. Nd5 {[%emt 0:16:41]} Nxd5 {[%emt 0:09:10]} 6. cxd5 {[%emt 0:01:10]} Ne7 {[%emt 0:00:09]} 7. e3 {[%emt 0:04:46]} c6 {[%emt 0:10:44]} 8. a3 {[%emt 0:08:32]} Bd6 {[%emt 0:01:22]} 9. dxc6 {[%emt 0:13:11]} dxc6 {[%emt 0:00:14]} 10. Ne2 {[%emt 0:03:34]} O-O {[%emt 0:01:17]} 11. O-O {[%emt 0:00:57]} Bg4 {[%emt 0:01:55]} 12. h3 {[%emt 0:00:49]} Be6 {[%emt 0:00:18]} 13. Qc2 {[%emt 0:07:55]} Qc8 {[%emt 0:04:29]} 14. Kh2 {[%emt 0:00:15]} f5 {[%emt 0:01:05]} 15. f4 {[%emt 0:03:29]} Bd5 {[%emt 0:01:59]} 16. d4 {[%emt 0:03:17]} Bxg2 {[%emt 0:01:16]} 17. Kxg2 {[%emt 0:00:06]} exf4 {[%emt 0:06:41]} 18. Nxf4 {[%emt 0:00:50]} Bxf4 {[%emt 0:02:03]} 19. Rxf4 {[%emt 0:01:19]} Nd5 {[%emt 0:02:53]} 20. Rf3 {[%emt 0:00:13]} Qe6 {[%emt 0:00:45]} 21. Bd2 {[%emt 0:02:24]} g6 {[%emt 0:02:41]} 22. Raf1 {[%emt 0:02:54]} Rfe8 {[%emt 0:01:26]} 23. Bc1 {[%emt 0:03:56]} Re7 {[%emt 0:00:35]} 24. Kg1 {[%emt 0:05:57]} Rae8 {[%emt 0:00:39]} 25. Qf2 {[%emt 0:01:49]} Kg7 {[%emt 0:06:47]} 26. Qg2 {[%emt 0:02:22]} h5 {[%emt 0:07:01]} 27. Qf2 {[%emt 0:00:57]} Qd7 {[%emt 0:01:56]} 28. g4 {[%emt 0:05:30]} fxg4 {[%emt 0:16:30]} 29. Rf8 {[%emt 0:00:10]} gxh3 {[%emt 0:00:19]} 30. Kh1 {[%emt 0:04:49]} Qe6 {[%emt 0:01:54]} 31. Kh2 {[%emt 0:00:05]} Qe4 {[%emt 0:05:25]} 32. Kxh3 {[%emt 0:01:06]} Rxf8 {[%emt 0:02:24]} 33. Qxf8+ {[%emt 0:00:01]} Kh7 {[%emt 0:00:10]} 34. Rf7+ {[%emt 0:01:30]} Rxf7 {[%emt 0:00:04]} 35. Qxf7+ {[%emt 0:00:05]} Kh6 {[%emt 0:00:10]} 36. Qf8+ {[%emt 0:00:21]} Kg5 {[%emt 0:00:41]} 37. Qd8+ {[%emt 0:00:26]} Nf6 {[%emt 0:00:45]} 38. Bd2 {[%emt 0:00:59]} Qf3+ {[%emt 0:00:27]} 0-1

[Event "ROU-chT 1st League 2019"]
[Site "Mamaia"]
[Date "2019.09.25"]
[Round "5.11"]
[White "Helmer, Janos"]
[Black "Prodileanu, Adrian"]
[Result "1/2-1/2"]
[ECO "A35"]
[WhiteElo "1990"]
[BlackElo "2236"]
[Annotator "NA"]
[PlyCount "69"]
[EventDate "2019.09.21"]
[EventType "team-tourn"]
[EventCountry "ROU"]
[SourceTitle "playchess.com"]
[Source "ChessBase"]
[SourceQuality "1"]
[TimeControl "40/5400+30:1800+30"]

1. Nf3 {[%emt 0:00:00]} Nf6 {[%emt 0:00:00]} 2. c4 {[%emt 0:01:24]} c5 {[%emt 0:00:06]} 3. Nc3 {[%emt 0:00:12]} Nc6 {[%emt 0:00:10]} 4. g3 {[%emt 0:00:26]} d5 {[%emt 0:01:11]} 5. cxd5 {[%emt 0:00:06]} Nxd5 {[%emt 0:00:05]} 6. Bg2 {[%emt 0:00:12]} Nc7 {[%emt 0:00:12]} 7. d3 {[%emt 0:00:50]} g6 {[%emt 0:01:55]} 8. O-O {[%emt 0:04:04]} Bg7 {[%emt 0:00:41]} 9. Nd2 {[%emt 0:02:02]} Bd7 {[%emt 0:03:50]} 10. Nc4 {[%emt 0:01:51]} O-O {[%emt 0:00:54]} 11. f4 {[%emt 0:02:43]} Rc8 {[%emt 0:02:16]} 12. Bd2 {[%emt 0:04:34]} b5 {[%emt 0:28:14]} 13. Ne3 {[%emt 0:04:30]} Nd4 {[%emt 0:00:20]} 14. Rc1 {[%emt 0:02:34]} f5 {[%emt 0:04:40]} 15. Ncd5 {[%emt 0:05:49]} Nxd5 {[%emt 0:03:50]} 16. Bxd5+ {[%emt 0:00:46]} e6 {[%emt 0:00:50]} 17. Bg2 {[%emt 0:01:11]} Qb6 {[%emt 0:00:49]} 18. Kh1 {[%emt 0:14:10]} Bc6 {[%emt 0:01:35]} 19. Nc2 {[%emt 0:07:38]} Bxg2+ {[%emt 0:01:50]} 20. Kxg2 {[%emt 0:00:03]} Qc6+ {[%emt 0:02:41]} 21. Kf2 {[%emt 0:04:28]} Qd5 {[%emt 0:02:38]} 22. b3 {[%emt 0:02:36]} e5 {[%emt 0:02:53]} 23. Nxd4 {[%emt 0:05:51]} exd4 {[%emt 0:04:22]} 24. Qc2 {[%emt 0:03:02]} Rfe8 {[%emt 0:01:12]} 25. Rfe1 {[%emt 0:00:53]} Re6 {[%emt 0:07:00]} 26. a4 {[%emt 0:03:50]} a6 {[%emt 0:08:07]} 27. axb5 {[%emt 0:01:22]} axb5 {[%emt 0:00:05]} 28. Ra1 {[%emt 0:02:07]} h5 {[%emt 0:00:59]} 29. h4 {[%emt 0:01:01]} Bf6 {[%emt 0:02:29]} 30. Ra5 {[%emt 0:00:24]} Qc6 {[%emt 0:01:13]} 31. Ra2 {[%emt 0:06:25]} Bd8 {[%emt 0:05:07]} 32. Ba5 {[%emt 0:04:33]} Bf6 {[%emt 0:03:15]} 33. Bd2 {[%emt 0:00:14]} Bd8 {[%emt 0:05:47]} 34. Ba5 {[%emt 0:00:09]} Bf6 {[%emt 0:01:42]} 35. Bd2 {[%emt 0:00:09]} 1/2-1/2

[Event "ROU-chT 1st League 2019"]
[Site "Mamaia"]
[Date "2019.09.25"]
[Round "5.12"]
[White "Micu, Iulian"]
[Black "Bobocea, Laurentiu-Vlad"]
[Result "1/2-1/2"]
[ECO "B50"]
[WhiteElo "2165"]
[BlackElo "1921"]
[Annotator "NA"]
[PlyCount "52"]
[EventDate "2019.09.21"]
[EventType "team-tourn"]
[EventCountry "ROU"]
[SourceTitle "playchess.com"]
[Source "ChessBase"]
[SourceQuality "1"]
[TimeControl "40/5400+30:1800+30"]

1. e4 {[%emt 0:00:00]} c5 {[%emt 0:00:00]} 2. Nf3 {[%emt 0:00:00]} d6 {[%emt 0:00:00]} 3. c3 {[%emt 0:00:19]} Nf6 {[%emt 0:00:08]} 4. Bd3 {[%emt 0:00:15]} Nc6 {[%emt 0:00:41]} 5. O-O {[%emt 0:02:08]} g6 {[%emt 0:01:31]} 6. h3 {[%emt 0:00:45]} Bg7 {[%emt 0:00:08]} 7. Re1 {[%emt 0:00:52]} O-O {[%emt 0:00:57]} 8. Bc2 {[%emt 0:00:52]} e5 {[%emt 0:00:43]} 9. d4 {[%emt 0:10:21]} cxd4 {[%emt 0:00:20]} 10. cxd4 {[%emt 0:00:11]} exd4 {[%emt 0:00:16]} 11. Nxd4 {[%emt 0:01:21]} d5 {[%emt 0:03:18]} 12. Nxc6 {[%emt 0:12:15]} bxc6 {[%emt 0:00:17]} 13. e5 {[%emt 0:00:10]} Nd7 {[%emt 0:12:22]} 14. f4 {[%emt 0:00:33]} Re8 {[%emt 0:06:18]} 15. Nc3 {[%emt 0:11:23]} Nb6 {[%emt 0:02:22]} 16. Na4 {[%emt 0:14:40]} f6 {[%emt 0:20:51]} 17. exf6 {[%emt 0:02:01]} Bxf6 {[%emt 0:00:53]} 18. Kh1 {[%emt 0:05:18]} Nxa4 {[%emt 0:09:21]} 19. Bxa4 {[%emt 0:00:14]} Bd7 {[%emt 0:06:00]} 20. Bc2 {[%emt 0:03:46]} Qb6 {[%emt 0:04:14]} 21. Rf1 {[%emt 0:01:00]} Qd4 {[%emt 0:07:53]} 22. Qf3 {[%emt 0:07:49]} Bg7 {[%emt 0:07:54]} 23. Rb1 {[%emt 0:01:47]} Bf5 {[%emt 0:01:37]} 24. Bxf5 {[%emt 0:02:01]} gxf5 {[%emt 0:00:01]} 25. b4 {[%emt 0:01:20]} Qe4 {[%emt 0:01:47]} 26. Bb2 {[%emt 0:00:17]} Qxf3 {[%emt 0:03:20]} 1/2-1/2

[Event "ROU-chT 1st League 2019"]
[Site "Mamaia"]
[Date "2019.09.25"]
[Round "5.13"]
[White "Tarlev, Konstantin"]
[Black "Macovei, Andrei"]
[Result "1-0"]
[ECO "E06"]
[WhiteElo "2559"]
[BlackElo "2426"]
[Annotator "ChessBase"]
[PlyCount "85"]
[EventDate "2019.09.21"]
[EventType "team-tourn"]
[EventCountry "ROU"]
[SourceTitle "playchess.com"]
[Source "ChessBase"]
[SourceQuality "1"]
[TimeControl "40/5400+30:1800+30"]

1. d4 {[%emt 0:00:00]} Nf6 {[%emt 0:00:00]} 2. c4 {[%emt 0:00:00]} e6 {[%emt 0:00:18]} 3. Nf3 {[%emt 0:00:00]} d5 {[%emt 0:02:27]} 4. g3 {[%emt 0:00:07]} Be7 {[%emt 0:00:46]} 5. Bg2 {[%emt 0:00:22]} O-O {[%emt 0:00:05]} 6. Qc2 {[%emt 0:02:31]} c5 {[%emt 0:04:14]} 7. dxc5 {[%emt 0:06:35]} Qa5+ {[%emt 0:12:56]} 8. Nc3 {[%emt 0:21:26]} dxc4 {[%emt 0:05:54]} 9. O-O {[%emt 0:00:45]} Nc6 {[%emt 0:03:31]} 10. Ne4 {[%emt 0:24:10]} Nxe4 {[%emt 0:01:34]} 11. Qxe4 {[%emt 0:00:04]} Qxc5 {[%emt 0:04:37]} 12. Be3 {[%emt 0:01:05]} Qb5 {[%emt 0:21:50]} 13. Rfc1 {[%emt 0:02:48]} e5 {[%emt 0:10:58]} 14. Qxc4 {[%emt 0:00:45]} Qxc4 {[%emt 0:00:14]} 15. Rxc4 {[%emt 0:00:04]} Be6 {[%emt 0:00:14]} 16. Rxc6 {[%emt 0:12:04]} bxc6 {[%emt 0:01:16]} 17. Nxe5 {[%emt 0:00:05]} Bd5 {[%emt 0:06:23]} 18. Nxc6 {[%emt 0:01:22]} Bxc6 {[%emt 0:00:04]} 19. Bxc6 {[%emt 0:00:02]} Rac8 {[%emt 0:00:02]} 20. Be4 {[%emt 0:01:34]} Bc5 {[%emt 0:00:46]} 21. Bd2 {[%emt 0:02:58]} Rfd8 {[%emt 0:01:01]} 22. Bd3 {[%emt 0:00:14]} Bd4 {[%emt 0:00:59]} 23. Rb1 {[%emt 0:01:03]} g6 {[%emt 0:00:35]} 24. b4 {[%emt 0:09:15]} Rd6 {[%emt 0:05:22]} 25. Kg2 {[%emt 0:02:14]} Rf6 {[%emt 0:02:10]} 26. f4 {[%emt 0:01:05]} Re6 {[%emt 0:01:32]} 27. Kf3 {[%emt 0:00:56]} Rce8 {[%emt 0:02:49]} 28. a4 {[%emt 0:05:49]} Be3 {[%emt 0:00:16]} 29. Bc3 {[%emt 0:00:48]} Rc8 {[%emt 0:02:13]} 30. Rb3 {[%emt 0:01:10]} Rd8 {[%emt 0:03:45]} 31. a5 {[%emt 0:01:27]} Bd4 {[%emt 0:00:34]} 32. Bd2 {[%emt 0:00:30]} Rc8 {[%emt 0:00:53]} 33. b5 {[%emt 0:00:08]} Kf8 {[%emt 0:00:59]} 34. g4 {[%emt 0:01:41]} Kg8 {[%emt 0:02:31]} 35. h4 {[%emt 0:00:12]} Re7 {[%emt 0:00:39]} 36. h5 {[%emt 0:01:03]} Rce8 {[%emt 0:00:37]} 37. h6 {[%emt 0:00:26]} Rc7 {[%emt 0:01:25]} 38. g5 {[%emt 0:00:26]} Rb8 {[%emt 0:00:51]} 39. e3 {[%emt 0:00:59]} Bc5 {[%emt 0:00:04]} 40. Bc3 {[%emt 0:00:00]} Re7 {[%emt 0:00:00]} 41. Be5 {[%emt 0:03:06]} Rxe5 {[%emt 0:04:13]} 42. fxe5 {[%emt 0:00:07]} Be7 {[%emt 0:00:12]} 43. Be4 {[%emt 0:02:52]} 1-0